fUST/lending_fUST_20250313
["ID","MTS","AMOUNT","RATE_DAILY","PERIOD"]
[356029118,1741806646673,-1503.35,0.00022465,2]
[356029120,1741806646683,-803.0,0.00022465,2]
[356029122,1741806646692,-500.0,0.00022465,2]
[356029124,1741806646701,-626.32,0.00022465,2]
[356029126,1741806646710,-784.34,0.00022465,2]
[356029128,1741806646720,-1527.59,0.00022465,2]
[356029130,1741806646729,-500.0,0.00022465,2]
[356029132,1741806646739,-699.95,0.00022465,2]
[356029134,1741806646748,-500.0,0.00022465,2]
[356029136,1741806646758,-500.0,0.00022465,5]
[356029138,1741806646767,-503.94,0.00022465,2]
[356029140,1741806646776,-2768.61,0.00022465,2]
[356029142,1741806646786,-1714.8,0.00022465,2]
[356029144,1741806646795,-3002.94,0.00022465,2]
[356029146,1741806646805,-604.58641675,0.00022465,2]
[356029148,1741806646815,-513.81,0.00022465,2]
[356029150,1741806646825,-551.63,0.00022465,2]
[356029152,1741806646834,-500.0,0.00022465,2]
[356029154,1741806646844,-646.8,0.00022465,2]
[356029156,1741806646853,-2017.18,0.00022465,2]
[356029158,1741806646863,-500.0,0.00022465,2]
[356029160,1741806646872,-500.0,0.00022465,2]
[356029162,1741806646882,-2788.12,0.00022465,2]
[356029164,1741806646891,-500.0,0.00022465,2]
[356029166,1741806646900,-418.41835002,0.00022465,2]
[356029168,1741806646910,-29824.9076116,0.00022465,2]
[356029403,1741807832811,-1368.94335917,0.00019205,5]
[356029404,1741807832821,-155.22,0.00020878,2]
[356029405,1741807832830,-155.22,0.00020878,2]
[356029406,1741807832840,-300.0,0.00020886,2]
[356029407,1741807832849,-386.94658807,0.00020887,2]
[356029408,1741807832911,-113.05341193,0.00020887,2]
[356029409,1741807832921,-500.0,0.00020887,2]
[356029410,1741807832931,-500.0,0.00020887,2]
[356029411,1741807832940,-218.95138505,0.00020887,2]
[356029412,1741807832950,-434.64458016,0.00020887,2]
[356029413,1741807832959,-500.0,0.00020887,2]
[356029414,1741807832968,-500.0,0.00020887,2]
[356029415,1741807832977,-500.0,0.00020887,2]
[356029417,1741807832987,-500.0,0.00020887,2]
[356029419,1741807832996,-500.0,0.00020887,2]
[356029420,1741807833005,-500.0,0.00020887,2]
[356029421,1741807833015,-500.0,0.00020887,2]
[356029422,1741807833025,-500.0,0.00020887,2]
[356029423,1741807833036,-500.0,0.00020887,2]
[356029424,1741807833046,-500.0,0.00020887,2]
[356029425,1741807833056,-500.0,0.00020887,2]
[356029426,1741807833066,-500.0,0.00020887,2]
[356029427,1741807833076,-500.0,0.00020887,2]
[356029428,1741807833085,-24900.0,0.00020888,2]
[356029429,1741807833096,-150.0,0.00021,2]
[356029430,1741807833106,-155.22,0.0002169,2]
[356029431,1741807833116,-799.99,0.000217,2]
[356029432,1741807833127,-200.04,0.000217,2]
[356029433,1741807833136,-799.99,0.000217,2]
[356029434,1741807833145,-799.99,0.000217,2]
[356029435,1741807833155,-800.0,0.000217,2]
[356029436,1741807833164,-799.99,0.000217,2]
[356029437,1741807833174,-800.0,0.000217,2]
[356029438,1741807833183,-360.67,0.000217,2]
[356029439,1741807833193,-799.99,0.000217,2]
[356029440,1741807833203,-800.0,0.000217,2]
[356029441,1741807833213,-218.36303007,0.00021717,2]
[356029442,1741807833223,-155.22,0.00021807,2]
[356029443,1741807833233,-156.90755648,0.00021816,2]
[356029444,1741807833243,-152664.42677708,0.00021817,2]
[356029445,1741807833257,-2553.99719708,0.00021817,2]
[356029467,1741807838428,-1028.50247282,0.00021817,2]
[356029478,1741807838540,-65753.07355302,0.00021817,2]
[356029480,1741807838550,-2432.00524152,0.00021817,2]
[356029483,1741807838559,-2145.51368195,0.000219,3]
[356029486,1741807838569,-600.0,0.00021904,2]
[356029489,1741807838579,-505.34826254,0.00021917,2]
[356029491,1741807838588,-500.0,0.00021917,2]
[356029493,1741807838597,-471.5211211,0.00021917,2]
[356029495,1741807838606,-256.46784854,0.00021917,2]
[356029497,1741807838615,-500.0,0.00021917,2]
[356029499,1741807838624,-500.0,0.00021917,2]
[356029501,1741807838634,-500.0,0.00021917,2]
[356029503,1741807838646,-500.0,0.00021917,2]
[356029505,1741807838656,-500.0,0.00021917,2]
[356029507,1741807838665,-500.0,0.00021917,2]
[356029508,1741807838674,-657.96,0.00021917,2]
[356029510,1741807838684,-500.0,0.00021917,2]
[356029511,1741807838694,-500.0,0.00021917,2]
[356029513,1741807838705,-1892.55,0.00021917,2]
[356029514,1741807838715,-500.0,0.00021917,2]
[356029515,1741807838725,-407.03507838,0.00021917,2]
[356029517,1741807838734,-500.0,0.00021917,2]
[356029519,1741807838744,-500.0,0.00021917,2]
[356029520,1741807838755,-500.0,0.00021917,2]
[356029521,1741807838764,-500.0,0.00021917,2]
[356029522,1741807838777,-500.0,0.00021917,2]
[356029523,1741807838787,-500.0,0.00021917,2]
[356029524,1741807838796,-500.0,0.00021917,2]
[356029525,1741807838806,-500.0,0.00021917,2]
[356029526,1741807838815,-500.0,0.00021917,2]
[356029527,1741807838824,-500.0,0.00021917,2]
[356029528,1741807838834,-500.0,0.00021917,2]
[356029529,1741807838844,-500.0,0.00021917,2]
[356029530,1741807838853,-621.34205604,0.00021917,2]
[356029531,1741807838863,-502.60272172,0.00021917,2]
[356029532,1741807838873,-500.0,0.00021917,2]
[356029533,1741807838882,-500.0,0.00021917,2]
[356029534,1741807838893,-532.1829557,0.00021917,2]
[356029535,1741807838903,-500.0,0.00021917,2]
[356029536,1741807838912,-500.0,0.00021917,2]
[356029537,1741807838921,-500.0,0.00021917,2]
[356029538,1741807838932,-500.0,0.00021917,2]
[356029539,1741807838941,-500.0,0.00021917,2]
[356029540,1741807838951,-500.0,0.00021917,2]
[356029541,1741807838960,-500.0,0.00021917,2]
[356029542,1741807838970,-517.06809337,0.00021917,2]
[356029543,1741807838979,-500.0,0.00021917,2]
[356029544,1741807838988,-621.82,0.00021917,2]
[356029545,1741807838998,-500.0,0.00021917,2]
[356029546,1741807839009,-500.0,0.00021917,2]
[356029547,1741807839018,-500.0,0.00021917,2]
[356029548,1741807839028,-500.0,0.00021917,2]
[356029549,1741807839038,-500.0,0.00021917,2]
[356029550,1741807839048,-500.0,0.00021917,2]
[356029551,1741807839058,-500.0,0.00021917,2]
[356029552,1741807839068,-516.45559555,0.00021917,2]
[356029553,1741807839077,-515.77695533,0.00021917,2]
[356029554,1741807839306,-500.0,0.00021917,2]
[356029555,1741807839317,-500.0,0.00021917,2]
[356029556,1741807839326,-500.0,0.00021917,2]
[356029557,1741807839335,-500.0,0.00021917,2]
[356029558,1741807839345,-500.0,0.00021917,2]
[356029559,1741807839354,-500.0,0.00021917,2]
[356029560,1741807839364,-506.08403907,0.00021917,2]
[356029561,1741807839373,-500.0,0.00021917,2]
[356029562,1741807839382,-500.0,0.00021917,2]
[356029563,1741807839393,-500.0,0.00021917,2]
[356029564,1741807839402,-500.0,0.00021917,2]
[356029565,1741807839411,-500.0,0.00021917,2]
[356029566,1741807839420,-500.0,0.00021917,2]
[356029567,1741807839429,-500.0,0.00021917,2]
[356029568,1741807839438,-579.89127843,0.00021917,2]
[356029569,1741807839448,-500.0,0.00021917,2]
[356029570,1741807839457,-500.0,0.00021917,2]
[356029571,1741807839467,-500.0,0.00021917,2]
[356029572,1741807839476,-500.0,0.00021917,2]
[356029573,1741807839486,-500.0,0.00021917,2]
[356029574,1741807839495,-484.49440179,0.00021917,2]
[356029575,1741807839504,-500.0,0.00021917,2]
[356029576,1741807839514,-500.0,0.00021917,2]
[356029577,1741807839523,-500.0,0.00021917,2]
[356029578,1741807839533,-200.0,0.00021917,2]
[356029579,1741807839543,-500.0,0.00021917,2]
[356029580,1741807839552,-500.0,0.00021917,2]
[356029581,1741807839561,-500.0,0.00021917,2]
[356029582,1741807839571,-500.0,0.00021917,2]
[356029583,1741807839580,-500.0,0.00021917,2]
[356029584,1741807839589,-611.56,0.00021917,2]
[356029585,1741807839598,-500.0,0.00021917,2]
[356029586,1741807839608,-229.31550462,0.00021917,2]
[356029587,1741807839617,-500.0,0.00021917,2]
[356029588,1741807839627,-500.0,0.00021917,2]
[356029589,1741807839636,-500.0,0.00021917,2]
[356029590,1741807839647,-500.0,0.00021917,2]
[356029591,1741807839656,-803.05,0.00021917,2]
[356029592,1741807839665,-500.0,0.00021917,2]
[356029593,1741807839674,-500.0,0.00021917,2]
[356029594,1741807839683,-500.0,0.00021917,2]
[356029595,1741807839699,-500.0,0.00021917,2]
[356029596,1741807839708,-500.0,0.00021917,2]
[356029597,1741807839717,-500.0,0.00021917,2]
[356029598,1741807839726,-538.96,0.00021917,2]
[356029599,1741807839737,-511.25787417,0.00021917,2]
[356029600,1741807839746,-500.0,0.00021917,2]
[356029601,1741807839761,-500.0,0.00021917,2]
[356029602,1741807839773,-500.0,0.00021917,2]
[356029603,1741807839784,-500.0,0.00021917,2]
[356029604,1741807839793,-500.0,0.00021917,2]
[356029605,1741807839803,-500.0,0.00021917,2]
[356029606,1741807839812,-500.0,0.00021917,2]
[356029607,1741807839821,-500.0,0.00021917,2]
[356029608,1741807839830,-500.0,0.00021917,2]
[356029609,1741807839839,-571.78,0.00021917,2]
[356029610,1741807839848,-500.0,0.00021917,2]
[356029611,1741807839857,-579.10752232,0.00021917,2]
[356029613,1741807839866,-500.0,0.00021917,2]
[356029614,1741807839876,-500.0,0.00021917,2]
[356029616,1741807839885,-823.03,0.00021917,2]
[356029617,1741807839895,-500.0,0.00021917,2]
[356029618,1741807839904,-300.0,0.00021917,2]
[356029619,1741807839913,-500.0,0.00021917,2]
[356029620,1741807839922,-500.0,0.00021917,2]
[356029621,1741807839931,-500.0,0.00021917,2]
[356029622,1741807839940,-500.0,0.00021917,2]
[356029623,1741807839950,-500.0,0.00021917,2]
[356029624,1741807839960,-504.99093472,0.00021917,2]
[356029625,1741807839969,-500.0,0.00021917,2]
[356029627,1741807839978,-500.0,0.00021917,2]
[356029628,1741807839987,-500.0,0.00021917,2]
[356029630,1741807839997,-814.52,0.00021917,2]
[356029632,1741807840006,-500.0,0.00021917,2]
[356029633,1741807840015,-500.0,0.00021917,2]
[356029634,1741807840025,-500.0,0.00021917,2]
[356029635,1741807840034,-445.71381202,0.00021917,2]
[356029637,1741807840045,-500.0,0.00021917,2]
[356029639,1741807840055,-500.0,0.00021917,2]
[356029640,1741807840064,-500.0,0.00021917,2]
[356029642,1741807840073,-849.25,0.00021917,2]
[356029643,1741807840082,-358.60827403,0.00021917,2]
[356029644,1741807840092,-503.57799636,0.00021917,2]
[356029645,1741807840101,-500.0,0.00021917,2]
[356029646,1741807840110,-500.0,0.00021917,2]
[356029648,1741807840120,-522.59887614,0.00021917,2]
[356029649,1741807840129,-500.0,0.00021917,2]
[356029650,1741807840139,-500.0,0.00021917,2]
[356029651,1741807840150,-500.0,0.00021917,2]
[356029652,1741807840160,-507.06480476,0.00021917,2]
[356029653,1741807840170,-625.79,0.00021917,2]
[356029654,1741807840179,-588.45553264,0.00021917,2]
[356029655,1741807840189,-500.0,0.00021917,2]
[356029656,1741807840198,-873.61,0.00021917,2]
[356029657,1741807840208,-1256.4,0.00021917,2]
[356029658,1741807840217,-324.02963386,0.00021917,2]
[356029659,1741807840226,-500.0,0.00021917,2]
[356029660,1741807840235,-500.0,0.00021917,2]
[356029662,1741807840245,-500.0,0.00021917,2]
[356029663,1741807840254,-500.0,0.00021917,2]
[356029664,1741807840263,-879.24,0.00021917,2]
[356029665,1741807840272,-500.0,0.00021917,2]
[356029666,1741807840282,-515.58448178,0.00021917,2]
[356029667,1741807840293,-500.0,0.00021917,2]
[356029668,1741807840303,-500.0,0.00021917,2]
[356029669,1741807840313,-500.0,0.00021917,2]
[356029670,1741807840321,-500.0,0.00021917,2]
[356029671,1741807840330,-500.0,0.00021917,2]
[356029672,1741807840339,-500.0,0.00021917,2]
[356029673,1741807840349,-790.12,0.00021917,2]
[356029675,1741807840359,-500.0,0.00021917,2]
[356029676,1741807840369,-500.0,0.00021917,2]
[356029677,1741807840378,-500.0,0.00021917,2]
[356029678,1741807840387,-500.0,0.00021917,2]
[356029679,1741807840399,-500.0,0.00021917,2]
[356029680,1741807840408,-500.0,0.00021917,2]
[356029681,1741807840417,-500.0,0.00021917,2]
[356029682,1741807840427,-500.0,0.00021917,2]
[356029683,1741807840436,-500.0,0.00021917,2]
[356029684,1741807840445,-465.28335422,0.00021917,2]
[356029685,1741807840455,-500.0,0.00021917,2]
[356029687,1741807840465,-772.69,0.00021917,2]
[356029688,1741807840474,-500.0,0.00021917,2]
[356029690,1741807840484,-500.0,0.00021917,2]
[356029692,1741807840493,-500.0,0.00021917,2]
[356029694,1741807840503,-500.0,0.00021917,2]
[356029696,1741807840512,-500.0,0.00021917,2]
[356029697,1741807840521,-244.09021737,0.00021917,2]
[356029698,1741807840530,-500.0,0.00021917,2]
[356029699,1741807840540,-500.0,0.00021917,2]
[356029700,1741807840549,-500.0,0.00021917,2]
[356029701,1741807840559,-500.0,0.00021917,2]
[356029702,1741807840569,-500.0,0.00021917,2]
[356029703,1741807840578,-500.0,0.00021917,2]
[356029704,1741807840587,-500.0,0.00021917,2]
[356029705,1741807840597,-500.0,0.00021917,2]
[356029706,1741807840606,-964.71,0.00021917,2]
[356029707,1741807840615,-500.0,0.00021917,2]
[356029708,1741807840624,-500.0,0.00021917,2]
[356029709,1741807840634,-500.0,0.00021917,2]
[356029710,1741807840645,-500.0,0.00021917,5]
[356029711,1741807840655,-500.0,0.00021917,2]
[356029712,1741807840665,-500.0,0.00021917,2]
[356029713,1741807840676,-500.0,0.00021917,2]
[356029714,1741807840686,-500.0,0.00021917,2]
[356029716,1741807840697,-595.63280161,0.00021917,2]
[356029718,1741807840707,-500.0,0.00021917,2]
[356029720,1741807840716,-500.0,0.00021917,2]
[356029722,1741807840725,-500.0,0.00021917,2]
[356029723,1741807840735,-928.62,0.00021917,2]
[356029724,1741807840745,-500.0,0.00021917,2]
[356029725,1741807840754,-500.0,0.00021917,2]
[356029726,1741807840764,-500.0,0.00021917,2]
[356029727,1741807840775,-500.0,0.00021917,2]
[356029728,1741807840785,-500.0,0.00021917,2]
[356029729,1741807840795,-500.0,0.00021917,2]
[356029730,1741807840804,-500.0,0.00021917,2]
[356029731,1741807840813,-500.0,0.00021917,2]
[356029732,1741807840823,-500.0,0.00021917,2]
[356029733,1741807840833,-500.0,0.00021917,2]
[356029734,1741807840843,-500.0,0.00021917,2]
[356029735,1741807840852,-590.75785673,0.00021917,2]
[356029736,1741807840863,-500.0,0.00021917,2]
[356029737,1741807840873,-1520.59,0.00021917,2]
[356029738,1741807840882,-500.0,0.00021917,2]
[356029739,1741807840895,-500.0,0.00021917,2]
[356029740,1741807840904,-562.87763322,0.00021917,2]
[356029741,1741807840914,-500.0,0.00021917,2]
[356029742,1741807840923,-500.0,0.00021917,2]
[356029743,1741807840933,-500.0,0.00021917,2]
[356029744,1741807840942,-1039.44,0.00021917,2]
[356029745,1741807840951,-532.81226363,0.00021917,2]
[356029746,1741807840962,-619.47092971,0.00021917,2]
[356029747,1741807840972,-501.47419825,0.00021917,2]
[356029748,1741807840982,-500.0,0.00021917,2]
[356029749,1741807840992,-501.66483492,0.00021917,2]
[356029750,1741807841001,-500.0,0.00021917,2]
[356029751,1741807841011,-500.0,0.00021917,2]
[356029752,1741807841021,-960.69,0.00021917,2]
[356029753,1741807841031,-500.0,0.00021917,2]
[356029754,1741807841041,-500.0,0.00021917,2]
[356029755,1741807841052,-500.0,0.00021917,2]
[356029756,1741807841061,-500.0,0.00021917,2]
[356029757,1741807841071,-969.27,0.00021917,2]
[356029758,1741807841080,-1446.5,0.00021917,2]
[356029759,1741807841089,-579.28231291,0.00021917,2]
[356029760,1741807841099,-500.0,0.00021917,2]
[356029761,1741807841108,-1627.85,0.00021917,2]
[356029762,1741807841118,-500.0,0.00021917,2]
[356029763,1741807841127,-500.0,0.00021917,2]
[356029764,1741807841137,-246.91650077,0.00021917,2]
[356029765,1741807841147,-500.0,0.00021917,2]
[356029766,1741807841156,-2645.79,0.00021917,2]
[356029767,1741807841165,-500.0,0.00021917,2]
[356029768,1741807841175,-500.0,0.00021917,2]
[356029769,1741807841184,-500.0,0.00021917,2]
[356029770,1741807841194,-500.0,0.00021917,2]
[356029771,1741807841203,-500.0,0.00021917,2]
[356029772,1741807841212,-500.0,0.00021917,2]
[356029773,1741807841221,-500.0,0.00021917,2]
[356029774,1741807841230,-500.0,0.00021917,2]
[356029775,1741807841239,-500.0,0.00021917,2]
[356029776,1741807841248,-500.0,0.00021917,2]
[356029777,1741807841257,-500.0,0.00021917,2]
[356029778,1741807841266,-500.0,0.00021917,2]
[356029779,1741807841275,-500.0,0.00021917,2]
[356029780,1741807841284,-500.0,0.00021917,2]
[356029781,1741807841293,-1095.45,0.00021917,2]
[356029782,1741807841302,-500.0,0.00021917,2]
[356029783,1741807841312,-500.0,0.00021917,2]
[356029784,1741807841322,-500.0,0.00021917,2]
[356029785,1741807841331,-500.0,0.00021917,2]
[356029786,1741807841340,-587.94188016,0.00021917,2]
[356029787,1741807841350,-711.4,0.00021917,2]
[356029788,1741807841359,-4545.08,0.00021917,2]
[356029789,1741807841368,-500.0,0.00021917,2]
[356029790,1741807841378,-500.0,0.00021917,2]
[356029791,1741807841387,-500.0,0.00021917,2]
[356029792,1741807841398,-500.0,0.00021917,2]
[356029793,1741807841407,-500.0,0.00021917,2]
[356029794,1741807841415,-500.0,0.00021917,2]
[356029795,1741807841424,-500.0,0.00021917,2]
[356029796,1741807841434,-6905.92,0.00021917,2]
[356029797,1741807841443,-4102.35,0.00021917,2]
[356029798,1741807841452,-727.27,0.00021917,2]
[356029799,1741807841461,-500.0,0.00021917,2]
[356029800,1741807841470,-500.0,0.00021917,2]
[356029801,1741807841479,-579.7,0.00021917,2]
[356029802,1741807841489,-1366.05,0.00021917,2]
[356029803,1741807841497,-500.0,0.00021917,2]
[356029804,1741807841506,-2566.27,0.00021917,2]
[356029805,1741807841515,-500.0,0.00021917,2]
[356029806,1741807841525,-599.96821378,0.00021917,2]
[356029807,1741807841534,-500.0,0.00021917,2]
[356029808,1741807841544,-500.0,0.00021917,2]
[356029809,1741807841553,-3047.2,0.00021917,2]
[356029810,1741807841563,-624.74,0.00021917,2]
[356029811,1741807841572,-500.0,0.00021917,2]
[356029812,1741807841581,-235.98110283,0.00021917,2]
[356029813,1741807841590,-500.0,0.00021917,2]
[356029814,1741807841600,-602.09,0.00021917,2]
[356029815,1741807841609,-500.0,0.00021917,2]
[356029816,1741807841618,-500.0,0.00021917,2]
[356029817,1741807841628,-500.0,0.00021917,2]
[356029818,1741807841637,-500.0,0.00021917,2]
[356029819,1741807841647,-500.0,0.00021917,2]
[356029820,1741807841656,-500.0,0.00021917,2]
[356029821,1741807841666,-500.0,0.00021917,2]
[356029822,1741807841675,-500.0,0.00021917,2]
[356029823,1741807841684,-500.0,0.00021917,2]
[356029824,1741807841695,-500.0,0.00021917,2]
[356029825,1741807841706,-500.0,0.00021917,2]
[356029826,1741807841716,-500.0,0.00021917,2]
[356029827,1741807841725,-878.22,0.00021917,2]
[356029828,1741807841736,-1126.64,0.00021917,2]
[356029829,1741807841745,-500.0,0.00021917,2]
[356029830,1741807841755,-500.0,0.00021917,2]
[356029831,1741807841764,-500.0,0.00021917,2]
[356029832,1741807841774,-500.0,0.00021917,2]
[356029833,1741807841785,-500.0,0.00021917,2]
[356029834,1741807841795,-500.0,0.00021917,2]
[356029835,1741807841804,-500.0,0.00021917,2]
[356029836,1741807841814,-500.0,0.00021917,2]
[356029837,1741807841823,-500.0,0.00021917,2]
[356029838,1741807841832,-516.94,0.00021917,2]
[356029839,1741807841842,-759.37,0.00021917,2]
[356029840,1741807841851,-4535.03,0.00021917,2]
[356029841,1741807841861,-1455.49,0.00021917,2]
[356029842,1741807841870,-509.94627412,0.00021917,2]
[356029843,1741807841880,-500.0,0.00021917,2]
[356029844,1741807841890,-2587.15,0.00021917,2]
[356029845,1741807841900,-500.0,0.00021917,2]
[356029846,1741807841908,-500.0,0.00021917,2]
[356029847,1741807841918,-500.0,0.00021917,2]
[356029848,1741807841927,-2614.25,0.00021917,2]
[356029849,1741807841936,-2818.32,0.00021917,2]
[356029850,1741807841945,-500.0,0.00021917,2]
[356029851,1741807841955,-500.0,0.00021917,2]
[356029852,1741807841965,-500.0,0.00021917,2]
[356029853,1741807841975,-500.0,0.00021917,2]
[356029854,1741807841984,-500.0,0.00021917,2]
[356029855,1741807841994,-1439.5,0.00021917,2]
[356029856,1741807842004,-3780.77,0.00021917,2]
[356029857,1741807842013,-500.0,0.00021917,2]
[356029858,1741807842023,-500.0,0.00021917,2]
[356029859,1741807842032,-532.74,0.00021917,2]
[356029860,1741807842041,-500.0,0.00021917,2]
[356029861,1741807842050,-1614.84,0.00021917,2]
[356029862,1741807842060,-500.0,0.00021917,2]
[356029863,1741807842070,-606.39,0.00021917,2]
[356029864,1741807842079,-55052.7,0.00021917,2]
[356029865,1741807842088,-500.0,0.00021917,2]
[356029866,1741807842098,-500.0,0.00021917,2]
[356029867,1741807842107,-500.0,0.00021917,2]
[356029868,1741807842117,-762.18,0.00021917,2]
[356029869,1741807842127,-795.78,0.00021917,2]
[356029870,1741807842136,-500.0,0.00021917,2]
[356029871,1741807842147,-15325.94,0.00021917,2]
[356029872,1741807842156,-775.49,0.00021917,2]
[356029873,1741807842166,-500.0,0.00021917,2]
[356029874,1741807842175,-500.0,0.00021917,2]
[356029875,1741807842185,-552.32441203,0.00021917,2]
[356029876,1741807842194,-856.87,0.00021917,2]
[356029877,1741807842204,-500.0,0.00021917,2]
[356029878,1741807842214,-500.0,0.00021917,2]
[356029879,1741807842223,-500.0,0.00021917,2]
[356029880,1741807842233,-509.16483294,0.00021917,2]
[356029881,1741807842243,-2080.55,0.00021917,2]
[356029882,1741807842253,-500.0,0.00021917,2]
[356029883,1741807842262,-1260.94,0.00021917,2]
[356029884,1741807842272,-1967.72,0.00021917,2]
[356029885,1741807842283,-500.0,0.00021917,2]
[356029886,1741807842293,-675.84,0.00021917,2]
[356029887,1741807842302,-500.0,0.00021917,2]
[356029888,1741807842312,-500.0,0.00021917,2]
[356029889,1741807842322,-500.0,0.00021917,2]
[356029890,1741807842332,-500.0,0.00021917,2]
[356029891,1741807842342,-1579.45,0.00021917,2]
[356029892,1741807842352,-982.81,0.00021917,2]
[356029893,1741807842362,-1579.45,0.00021917,2]
[356029894,1741807842383,-1579.45,0.00021917,2]
[356029895,1741807842397,-1579.45,0.00021917,2]
[356029896,1741807842407,-1579.45,0.00021917,2]
[356029897,1741807842416,-1579.45,0.00021917,2]
[356029898,1741807842426,-1579.45,0.00021917,2]
[356029899,1741807842436,-1579.45,0.00021917,2]
[356029900,1741807842445,-1579.45,0.00021917,2]
[356029901,1741807842455,-500.0,0.00021917,2]
[356029902,1741807842465,-1579.45,0.00021917,2]
[356029903,1741807842475,-1579.45,0.00021917,2]
[356029904,1741807842484,-1579.45,0.00021917,2]
[356029905,1741807842494,-1579.45,0.00021917,2]
[356029906,1741807842503,-1579.45,0.00021917,2]
[356029907,1741807842513,-1579.45,0.00021917,2]
[356029908,1741807842522,-500.0,0.00021917,2]
[356029909,1741807842532,-1579.45,0.00021917,2]
[356029910,1741807842542,-500.0,0.00021917,2]
[356029911,1741807842551,-898.47,0.00021917,2]
[356029912,1741807842561,-2400.93,0.00021917,2]
[356029913,1741807842571,-500.0,0.00021917,2]
[356029914,1741807842580,-1579.45,0.00021917,2]
[356029915,1741807842589,-1579.45,0.00021917,2]
[356029916,1741807842599,-1579.45,0.00021917,2]
[356029917,1741807842609,-1579.45,0.00021917,2]
[356029918,1741807842619,-1579.45,0.00021917,2]
[356029919,1741807842629,-1579.45,0.00021917,2]
[356029920,1741807842638,-5232.51,0.00021917,2]
[356029921,1741807842650,-1579.45,0.00021917,2]
[356029922,1741807842660,-1579.63676309,0.00021917,2]
[356029923,1741807842671,-500.0,0.00021917,2]
[356029924,1741807842680,-500.0,0.00021917,2]
[356029925,1741807842691,-500.0,0.00021917,2]
[356029926,1741807842704,-6967.34,0.00021917,2]
[356029927,1741807842714,-10406.88,0.00021917,2]
[356029928,1741807842723,-500.0,0.00021917,2]
[356029929,1741807842735,-500.0,0.00021917,2]
[356029930,1741807842744,-1098.79,0.00021917,2]
[356029931,1741807842755,-500.0,0.00021917,2]
[356029932,1741807842764,-1000.0,0.00021917,7]
[356029933,1741807842775,-784.47,0.00021917,2]
[356029934,1741807842785,-500.0,0.00021917,2]
[356029935,1741807842795,-816.64,0.00021917,2]
[356029936,1741807842805,-500.0,0.00021917,2]
[356029937,1741807842814,-938.64,0.00021917,2]
[356029938,1741807842824,-500.0,0.00021917,2]
[356029939,1741807842834,-500.0,0.00021917,2]
[356029940,1741807842844,-500.0,0.00021917,2]
[356029941,1741807842853,-3174.62,0.00021917,2]
[356029942,1741807842863,-500.0,0.00021917,2]
[356029943,1741807842873,-500.0,0.00021917,2]
[356029944,1741807842883,-500.0,0.00021917,2]
[356029945,1741807842892,-500.0,0.00021917,2]
[356029946,1741807842903,-500.0,0.00021917,2]
[356029947,1741807842913,-500.0,0.00021917,2]
[356029948,1741807842923,-4178.48,0.00021917,2]
[356029949,1741807842932,-500.0,0.00021917,2]